fUSD/lending_fUSD_20250506
["ID","MTS","AMOUNT","RATE_DAILY","PERIOD"]
[360051517,1746523405898,3340.84601717,0.0003,30]
[360051518,1746523408857,500.0,0.00018904,2]
[360051519,1746523409298,500.0,0.00018904,2]
[360051520,1746523409621,500.0,0.00018904,2]
[360051521,1746523409931,500.0,0.00018904,2]
[360051522,1746523410248,329.97868245,0.00018904,2]
[360051523,1746523410273,170.02131755,0.00018904,2]
[360051524,1746523421306,182.19,0.00018836,2]
[360051530,1746523447447,200.0,0.00019,2]
[360051540,1746523487086,500.0,0.00029589,30]
[360051543,1746523487312,500.0,0.00029863,35]
[360051554,1746523532462,500.0,0.00029589,30]
[360051555,1746523532718,500.0,0.00029863,30]
[360051556,1746523542939,57364.73907276,0.0002,30]
[360051567,1746523580805,8297.16292982,0.000209,30]
[360051581,1746523648520,2761.37496164,0.0003,30]
[360051592,1746523710234,499.999999,0.000298,30]
[360051593,1746523718518,899.999999,0.000151,2]
[360051599,1746523773112,1000.0,0.0003,30]
[360051601,1746523777290,1000.0,0.0003,30]
[360051602,1746523779251,1000.0,0.0003,30]
[360051603,1746523780497,-291.4059626,0.00019558,2]
[360051606,1746523784759,-200.0,0.00019558,2]
[360051607,1746523786474,271.0,0.0003,30]
[360051608,1746523791808,-269.60848208,0.00019558,2]
[360051610,1746523832239,-417.1601092,0.00019681,2]
[360051615,1746523832292,-2543.27177648,0.00019681,2]
[360051616,1746523832302,-317.1902,0.00019693,2]
[360051617,1746523832311,-200.0,0.000197,2]
[360051618,1746523832321,-200.0,0.0001971,2]
[360051619,1746523832331,-250.0,0.00019726,2]
[360051620,1746523832341,-6715.3434,0.00019731,2]
[360051621,1746523832350,-200.0,0.00019738,2]
[360051622,1746523832359,-2960.43188568,0.00019746,2]
[360051623,1746523832368,-1200.0,0.00019746,2]
[360051624,1746523832378,-300.0,0.00019746,2]
[360051625,1746523832387,-2500.0,0.00019747,2]
[360051626,1746523832396,-300.0,0.00019748,2]
[360051627,1746523832405,-805.5287733,0.0001975,2]
[360051628,1746523832415,-207.4,0.00019754,2]
[360051629,1746523832425,-623.64789882,0.00019763,2]
[360051630,1746523832434,-20685.3517,0.00019766,2]
[360051631,1746523832444,-2985.0,0.0001977,2]
[360051632,1746523832453,-2543.49171262,0.00019771,2]
[360051633,1746523832463,-6734.6775,0.00019778,2]
[360051634,1746523832472,-3239.02,0.00019781,14]
[360051635,1746523832481,-3083.098,0.00019782,2]
[360051636,1746523832491,-176.27236663,0.00019783,2]
[360051637,1746523832501,-2543.4917126,0.00019785,2]
[360051638,1746523832511,-850.0,0.00019792,2]
[360051639,1746523832521,-2543.4917126,0.000198,2]
[360051640,1746523832530,-360.0,0.00019812,2]
[360051641,1746523832539,-493.9334945,0.00019812,2]
[360051642,1746523832549,-521.80852999,0.00019812,2]
[360051643,1746523832558,-521.80852999,0.00019812,2]
[360051645,1746523832567,-521.80852999,0.00019812,2]
[360051646,1746523832576,-521.80852999,0.00019812,2]
[360051648,1746523832587,-521.80852999,0.00019812,2]
[360051650,1746523832596,-521.80852999,0.00019812,2]
[360051652,1746523832606,-521.80852999,0.00019812,2]
[360051654,1746523832615,-521.80852999,0.00019812,2]
[360051656,1746523832625,-521.80852999,0.00019812,2]
[360051658,1746523832634,-521.80852999,0.00019812,2]
[360051660,1746523832643,-521.80852999,0.00019812,2]
[360051662,1746523832653,-521.80852999,0.00019812,2]
[360051664,1746523832662,-521.80852999,0.00019812,2]
[360051666,1746523832672,-521.80852999,0.00019812,2]
[360051668,1746523832681,-521.80852999,0.00019812,2]
[360051670,1746523832693,-521.80852999,0.00019812,2]
[360051673,1746523832704,-521.80852999,0.00019812,2]
[360051674,1746523832713,-521.80852999,0.00019812,2]
[360051677,1746523832722,-521.80852999,0.00019812,2]
[360051679,1746523832733,-521.80852999,0.00019812,2]
[360051680,1746523832743,-521.80852999,0.00019812,2]
[360051681,1746523832752,-521.80852999,0.00019812,2]
[360051683,1746523832762,-521.80852999,0.00019812,2]
[360051685,1746523832772,-521.80852999,0.00019812,2]
[360051687,1746523832783,-521.80852999,0.00019812,2]
[360051689,1746523832792,-521.80852999,0.00019812,2]
[360051691,1746523832801,-521.80852999,0.00019812,2]
[360051693,1746523832811,-521.80852999,0.00019812,2]
[360051695,1746523832819,-521.80852999,0.00019812,2]
[360051697,1746523832829,-521.80852999,0.00019812,2]
[360051698,1746523832838,-521.80852999,0.00019812,2]
[360051699,1746523832847,-521.80852999,0.00019812,2]
[360051700,1746523832857,-521.80852999,0.00019812,2]
[360051701,1746523832866,-521.80852999,0.00019812,2]
[360051702,1746523832875,-521.80852999,0.00019812,2]
[360051703,1746523832884,-521.80852999,0.00019812,2]
[360051704,1746523832894,-521.80852999,0.00019812,2]
[360051705,1746523832903,-521.80852999,0.00019812,2]
[360051706,1746523832913,-521.80852999,0.00019812,2]
[360051707,1746523832923,-521.80852999,0.00019812,2]
[360051708,1746523832932,-521.80852999,0.00019812,2]
[360051709,1746523832941,-521.80852999,0.00019812,2]
[360051710,1746523832951,-521.80852999,0.00019812,2]
[360051711,1746523832960,-521.80852999,0.00019812,2]
[360051712,1746523832970,-521.80852999,0.00019812,2]
[360051713,1746523832980,-521.80852999,0.00019812,2]
[360051714,1746523832989,-521.80852999,0.00019812,2]
[360051715,1746523832999,-521.80852999,0.00019812,2]
[360051717,1746523833009,-521.80852999,0.00019812,2]
[360051719,1746523833018,-521.80852999,0.00019812,2]
[360051721,1746523833028,-521.80852999,0.00019812,2]
[360051723,1746523833038,-521.80852999,0.00019812,2]
[360051725,1746523833048,-521.80852999,0.00019812,2]
[360051727,1746523833057,-533.76331673,0.00019812,2]
[360051729,1746523833067,-533.76331673,0.00019812,2]
[360051731,1746523833076,-533.76331673,0.00019812,2]
[360051732,1746523833086,-533.76331673,0.00019812,2]
[360051734,1746523833096,-533.76331673,0.00019812,2]
[360051735,1746523833106,-533.76331673,0.00019812,2]
[360051736,1746523833116,-533.76331673,0.00019812,2]
[360051737,1746523833126,-533.76331673,0.00019812,2]
[360051738,1746523833136,-533.76331673,0.00019812,2]
[360051739,1746523833145,-533.76331673,0.00019812,2]
[360051740,1746523833155,-533.76331673,0.00019812,2]
[360051741,1746523833165,-533.76331673,0.00019812,2]
[360051742,1746523833174,-533.76331673,0.00019812,2]
[360051743,1746523833183,-533.76331673,0.00019812,2]
[360051744,1746523833192,-533.76331673,0.00019812,2]
[360051745,1746523833201,-533.76331673,0.00019812,2]
[360051746,1746523833210,-533.76331673,0.00019812,2]
[360051747,1746523833220,-533.76331673,0.00019812,2]
[360051748,1746523833228,-533.76331673,0.00019812,2]
[360051749,1746523833238,-533.76331673,0.00019812,2]
[360051750,1746523833247,-533.76331673,0.00019812,2]
[360051751,1746523833257,-533.76331673,0.00019812,2]
[360051752,1746523833266,-533.76331673,0.00019812,2]
[360051753,1746523833275,-533.76331673,0.00019812,2]
[360051754,1746523833288,-533.76331673,0.00019812,2]
[360051755,1746523833297,-533.76331673,0.00019812,2]
[360051756,1746523833307,-533.76331673,0.00019812,2]
[360051757,1746523833487,-601.5554273,0.00019812,2]
[360051758,1746523833498,-601.5554273,0.00019812,2]
[360051759,1746523833507,-601.5554273,0.00019812,2]
[360051760,1746523833516,-601.5554273,0.00019812,2]
[360051761,1746523833526,-601.5554273,0.00019812,2]
[360051762,1746523833536,-601.5554273,0.00019812,2]
[360051763,1746523833545,-601.5554273,0.00019812,2]
[360051764,1746523833554,-601.5554273,0.00019812,2]
[360051765,1746523833563,-601.5554273,0.00019812,2]
[360051766,1746523833574,-2543.4917126,0.00019814,2]
[360051767,1746523833585,-151.0,0.00019819,2]
[360051768,1746523833595,-668.65185757,0.00019819,2]
[360051769,1746523833605,-12500.0,0.00019821,2]
[360051770,1746523833615,-2543.4917126,0.00019828,2]
[360051771,1746523833624,-12500.0,0.0001983,2]
[360051772,1746523833634,-12500.0,0.00019838,2]
[360051773,1746523833644,-2543.4917126,0.00019843,2]
[360051774,1746523833653,-12500.0,0.00019847,2]
[360051775,1746523833662,-457.39781248,0.0001985,2]
[360051776,1746523833672,-452.21142137,0.0001985,2]
[360051777,1746523833683,-456.80480337,0.0001985,2]
[360051778,1746523833695,-310.62760927,0.0001985,2]
[360051779,1746523833704,-454.14339169,0.0001985,2]
[360051780,1746523833714,-296.68944907,0.00019853,2]
[360051781,1746523833723,-450.0,0.00019853,2]
[360051782,1746523833733,-450.0,0.00019853,2]
[360051783,1746523833744,-450.0,0.00019853,2]
[360051784,1746523833753,-554.23511172,0.00019853,2]
[360051785,1746523833764,-450.0,0.00019853,2]
[360051786,1746523833774,-450.0,0.00019853,2]
[360051787,1746523833784,-174.28412825,0.00019853,2]
[360051788,1746523833793,-450.0,0.00019853,2]
[360051789,1746523833803,-450.0,0.00019853,2]
[360051790,1746523833812,-450.0,0.00019853,2]
[360051791,1746523833821,-450.0,0.00019853,2]
[360051792,1746523833831,-450.0,0.00019853,2]
[360051793,1746523833840,-450.0,0.00019853,2]
[360051794,1746523833850,-583.51641923,0.00019853,2]
[360051795,1746523833859,-450.0,0.00019853,2]
[360051796,1746523833869,-3200.46946,0.00019853,2]
[360051797,1746523833878,-200.0,0.00019853,2]
[360051798,1746523833887,-180.05964539,0.00019853,2]
[360051799,1746523833897,-933.07,0.00019853,2]
[360051800,1746523833907,-450.0,0.00019853,2]
[360051801,1746523833916,-450.0,0.00019853,2]
[360051802,1746523833925,-2235.124918,0.00019853,2]
[360051803,1746523833935,-478.89478997,0.00019853,2]
[360051804,1746523833943,-519.31917299,0.00019853,2]
[360051805,1746523833953,-450.0,0.00019853,2]
[360051806,1746523833962,-450.0,0.00019853,2]
[360051807,1746523833971,-3697.645507,0.00019853,2]
[360051808,1746523833980,-450.0,0.00019853,2]
[360051809,1746523833989,-450.0,0.00019853,2]
[360051810,1746523833999,-12500.0,0.00019856,2]
[360051811,1746523834009,-2543.4917126,0.00019857,2]
[360051812,1746523834019,-450.0,0.00019862,2]
[360051813,1746523834029,-332.82851744,0.00019862,2]
[360051814,1746523834038,-450.0,0.00019862,2]
[360051815,1746523834047,-450.0,0.00019862,2]
[360051816,1746523834056,-450.0,0.00019862,2]
[360051817,1746523834066,-422.03285678,0.00019862,2]
[360051818,1746523834075,-450.0,0.00019862,2]
[360051819,1746523834084,-450.0,0.00019862,2]
[360051820,1746523834094,-450.0,0.00019862,2]
[360051821,1746523834104,-450.0,0.00019862,2]
[360051822,1746523834113,-565.62846348,0.00019862,2]
[360051823,1746523834122,-450.0,0.00019862,2]
[360051824,1746523834131,-674.61,0.00019862,2]
[360051825,1746523834141,-450.0,0.00019862,2]
[360051826,1746523834151,-450.0,0.00019862,2]
[360051827,1746523834160,-549.12456891,0.00019862,2]
[360051828,1746523834169,-176.52000285,0.00019862,2]
[360051829,1746523834179,-450.0,0.00019862,2]
[360051830,1746523834188,-520.67108747,0.00019864,2]
[360051831,1746523834197,-450.0,0.00019864,2]
[360051832,1746523834206,-450.0,0.00019864,2]
[360051833,1746523834215,-450.0,0.00019864,2]
[360051834,1746523834224,-450.26947904,0.00019864,2]
[360051835,1746523834233,-450.0,0.00019864,2]
[360051836,1746523834243,-492.36547459,0.00019864,2]
[360051837,1746523834252,-450.0,0.00019864,2]
[360051838,1746523834262,-450.0,0.00019864,2]
[360051839,1746523834272,-311.07,0.00019864,2]
[360051840,1746523834285,-450.0,0.00019864,2]
[360051841,1746523834294,-489.65661438,0.00019864,2]
[360051842,1746523834303,-562.75127756,0.00019864,2]
[360051843,1746523834312,-450.0,0.00019864,2]
[360051844,1746523834324,-450.0,0.00019864,2]
[360051845,1746523834334,-450.0,0.00019864,2]
[360051846,1746523834343,-450.0,0.00019864,2]
[360051847,1746523834353,-450.0,0.00019864,2]
[360051848,1746523834362,-450.0,0.00019864,2]
[360051849,1746523834371,-486.45187783,0.00019864,2]
[360051850,1746523834381,-481.97935146,0.00019864,2]
[360051851,1746523834390,-450.0,0.00019864,2]
[360051852,1746523834399,-450.0,0.00019864,2]
[360051853,1746523834408,-450.0,0.00019864,2]
[360051854,1746523834417,-111.31179329,0.00019864,2]
[360051855,1746523834432,-368.75389152,0.00019864,2]
[360051856,1746523834441,-450.0,0.00019864,2]
[360051857,1746523834451,-450.0,0.00019864,2]
[360051858,1746523834460,-450.0,0.00019864,2]
[360051859,1746523834469,-450.0,0.00019864,2]
[360051860,1746523834479,-450.0,0.00019864,2]
[360051861,1746523834488,-450.0,0.00019864,2]
[360051862,1746523834497,-465.97249816,0.00019864,2]
[360051863,1746523834506,-450.0,0.00019864,2]
[360051864,1746523834516,-450.0,0.00019864,2]
[360051865,1746523834525,-450.0,0.00019864,2]
[360051866,1746523834535,-450.0,0.00019864,2]
[360051867,1746523834544,-488.89732393,0.00019864,2]
[360051868,1746523834553,-450.0,0.00019864,2]
[360051869,1746523834563,-450.0,0.00019864,2]
[360051870,1746523834572,-491.71225383,0.00019864,2]
[360051871,1746523834582,-450.0,0.00019864,2]
[360051872,1746523834591,-440.0,0.00019864,2]
[360051873,1746523834600,-450.0,0.00019864,2]
[360051874,1746523834609,-574.57404312,0.00019864,2]
[360051875,1746523834618,-450.0,0.00019864,2]
[360051876,1746523834628,-532.02020237,0.00019864,2]
[360051877,1746523834640,-450.0,0.00019864,2]
[360051878,1746523834653,-450.0,0.00019864,2]
[360051879,1746523834668,-450.0,0.00019864,2]
[360051880,1746523834682,-450.0,0.00019864,2]
[360051881,1746523834695,-405.51397285,0.00019864,2]
[360051882,1746523834708,-450.0,0.00019864,2]
[360051883,1746523834721,-566.9039577,0.00019864,2]
[360051884,1746523834733,-450.0,0.00019864,2]
[360051885,1746523834748,-450.0,0.00019864,2]
[360051886,1746523834762,-450.0,0.00019864,2]
[360051887,1746523834776,-450.0,0.00019864,2]
[360051888,1746523834789,-450.0,0.00019864,2]
[360051889,1746523834800,-288.1551423,0.00019864,2]
[360051890,1746523834812,-450.0,0.00019864,2]
[360051891,1746523834826,-450.0,0.00019864,2]
[360051892,1746523834839,-450.0,0.00019864,2]
[360051893,1746523834852,-450.0,0.00019864,2]
[360051894,1746523834865,-450.0,0.00019864,2]
[360051895,1746523834877,-450.0,0.00019864,2]
[360051896,1746523834890,-172.46565228,0.00019864,2]
[360051897,1746523834903,-250.8266708,0.00019864,2]
[360051898,1746523834916,-593.76949399,0.00019864,2]
[360051899,1746523834930,-450.0,0.00019864,2]
[360051900,1746523834942,-450.0,0.00019864,2]
[360051901,1746523834956,-450.0,0.00019864,2]
[360051902,1746523834969,-450.0,0.00019864,2]
[360051903,1746523834980,-450.0,0.00019864,2]
[360051904,1746523834994,-450.0,0.00019864,2]
[360051905,1746523835008,-450.0,0.00019864,2]
[360051906,1746523835022,-450.0,0.00019864,2]
[360051907,1746523835035,-534.34180004,0.00019864,2]
[360051908,1746523835048,-450.0,0.00019864,2]
[360051909,1746523835058,-450.0,0.00019864,2]
[360051910,1746523835069,-450.0,0.00019864,2]
[360051911,1746523835081,-450.0,0.00019864,2]
[360051912,1746523835097,-450.0,0.00019864,2]
[360051913,1746523835110,-450.0,0.00019864,2]
[360051914,1746523835120,-452.91126572,0.00019864,2]
[360051915,1746523835131,-495.53112468,0.00019864,2]
[360051916,1746523835143,-450.0,0.00019864,2]
[360051917,1746523835156,-450.0,0.00019864,2]
[360051918,1746523835169,-450.0,0.00019864,2]
[360051919,1746523835181,-450.0,0.00019864,2]
[360051920,1746523835191,-450.0,0.00019864,2]
[360051921,1746523835202,-450.0,0.00019864,2]
[360051922,1746523835213,-450.0,0.00019864,2]
[360051923,1746523835224,-450.0,0.00019864,2]
[360051924,1746523835238,-450.0,0.00019864,2]
[360051925,1746523835250,-450.0,0.00019864,2]
[360051926,1746523835261,-450.0,0.00019864,2]
[360051927,1746523835273,-450.0,0.00019864,2]
[360051928,1746523835285,-450.0,0.00019864,2]
[360051929,1746523835296,-450.0,0.00019864,2]
[360051930,1746523835308,-450.0,0.00019864,2]
[360051931,1746523835319,-237.11061039,0.00019864,2]
[360051932,1746523835330,-450.0,0.00019864,2]
[360051933,1746523835342,-450.0,0.00019864,2]
[360051934,1746523835357,-450.0,0.00019864,2]
[360051935,1746523835369,-541.64481071,0.00019864,2]
[360051936,1746523835381,-498.05788944,0.00019864,2]
[360051937,1746523835392,-450.0,0.00019864,2]
[360051938,1746523835404,-450.0,0.00019864,2]
[360051939,1746523835416,-450.0,0.00019864,2]
[360051940,1746523835427,-450.0,0.00019864,2]
[360051941,1746523835438,-450.0,0.00019864,2]
[360051942,1746523835450,-450.0,0.00019864,2]
[360051943,1746523835462,-450.0,0.00019864,2]
[360051944,1746523835474,-450.0,0.00019864,2]
[360051945,1746523835485,-450.0,0.00019864,2]
[360051946,1746523835496,-450.0,0.00019864,2]
[360051947,1746523835508,-450.0,0.00019864,2]
[360051948,1746523835519,-474.92020839,0.00019864,2]
[360051949,1746523835531,-559.19311802,0.00019864,2]
[360051950,1746523835542,-450.0,0.00019864,2]
[360051951,1746523835554,-450.0,0.00019864,2]
[360051952,1746523835565,-450.0,0.00019864,2]
[360051953,1746523835577,-12500.0,0.00019865,2]
[360051954,1746523835588,-12500.0,0.00019865,2]
[360051955,1746523835600,-461.23858168,0.00019866,2]
[360051956,1746523835612,-500.0,0.00019871,2]
[360051957,1746523835624,-2543.4917126,0.00019871,2]
[360051958,1746523835635,-500.99600391,0.00019873,2]
[360051959,1746523835646,-502.19657558,0.00019873,2]
[360051960,1746523835658,-500.92699167,0.00019873,2]
[360051961,1746523835671,-500.0,0.00019873,2]
[360051962,1746523835683,-500.0,0.00019873,2]
[360051963,1746523835696,-500.0,0.00019873,2]
[360051964,1746523835708,-502.54862324,0.00019873,2]
[360051965,1746523835720,-185.95963943,0.00019873,2]
[360051966,1746523835732,-500.0,0.00019873,2]
[360051967,1746523835744,-500.0,0.00019873,2]
[360051968,1746523835756,-500.0,0.00019873,2]
[360051969,1746523835767,-511.52372489,0.00019873,2]
[360051970,1746523835780,-303.2046159,0.00019873,2]
[360051971,1746523835792,-503.75165483,0.00019873,2]
[360051972,1746523835803,-514.72723678,0.00019873,2]
[360051973,1746523835814,-500.0,0.00019873,2]
[360051974,1746523835826,-548.63971632,0.00019873,2]
[360051975,1746523835838,-500.0,0.00019873,2]
[360051976,1746523835850,-500.0,0.00019873,2]
[360051977,1746523835862,-500.0,0.00019873,2]
[360051978,1746523835873,-461.23858167,0.00019873,2]
[360051979,1746523835883,-12500.0,0.00019874,2]
[360051980,1746523835895,-12500.0,0.00019874,2]
[360051981,1746523835907,-225.0,0.00019878,2]
[360051982,1746523835918,-450.0,0.00019879,2]
[360051983,1746523835929,-450.0,0.00019879,2]
[360051984,1746523835941,-500.28180627,0.00019879,2]
[360051985,1746523835953,-450.0,0.00019879,2]
[360051986,1746523835965,-9384.51263138,0.00019879,2]
[360051987,1746523836008,-563.70807734,0.00019879,2]
[360051988,1746523836067,-2373.43929128,0.00019879,2]
[360051989,1746523836077,-450.0,0.00019879,2]
[360051990,1746523836087,-116.52702312,0.00019879,2]
[360051991,1746523836292,-333.47297688,0.00019879,2]
[360051992,1746523836309,-450.0,0.00019879,2]
[360051993,1746523836320,-450.0,0.00019879,2]
[360051994,1746523836329,-450.0,0.00019879,2]
[360051995,1746523836339,-450.0,0.00019879,2]
[360051996,1746523836348,-450.0,0.00019879,2]
[360051997,1746523836358,-450.0,0.00019879,2]
[360051998,1746523836367,-450.0,0.00019879,2]
[360051999,1746523836376,-450.0,0.00019879,2]
[360052000,1746523836386,-450.0,0.00019879,2]
[360052001,1746523836395,-450.0,0.00019879,2]
[360052002,1746523836404,-450.0,0.00019879,2]
[360052003,1746523836414,-450.0,0.00019879,2]
[360052004,1746523836423,-785.84151951,0.00019879,2]
[360052005,1746523836434,-514.49000001,0.00019879,2]
[360052006,1746523836470,-470.69720462,0.00019879,2]
[360052007,1746523836482,-485.0,0.00019879,2]
[360052008,1746523836492,-1502.46852206,0.00019879,2]
[360052009,1746523838224,-588.57344178,0.00019853,2]
[360052010,1746523838234,-450.0,0.00019853,2]
[360052011,1746523838244,-450.0,0.00019853,2]
[360052012,1746523838254,-2025.6627538,0.00019879,2]
[360052013,1746523838263,-389.58235253,0.0001988,2]
[360052014,1746523838272,-450.8842483,0.0001988,2]
[360052015,1746523838281,-450.0,0.0001988,2]
[360052016,1746523838291,-557.76894941,0.0001988,2]
[360052017,1746523838300,-436.59749201,0.0001988,2]
[360052018,1746523838331,-66.5619794,0.0001988,2]
[360052019,1746523838340,-446.08416189,0.0001988,2]
[360052061,1746523840449,-484.70769315,0.00019853,2]
[360052062,1746523840458,-450.0,0.00019853,2]
[360052064,1746523840467,-11.67750859,0.0001988,2]
[360052065,1746523840476,-450.0,0.0001988,2]
[360052067,1746523840486,-450.0,0.0001988,2]
[360052069,1746523840495,-524.81,0.0001988,2]
[360052070,1746523840504,-538.23,0.0001988,2]
[360052072,1746523840514,-450.0,0.0001988,2]
[360052074,1746523840523,-450.0,0.0001988,2]
[360052076,1746523840532,-501.36,0.0001988,2]
[360052077,1746523840541,-532.09,0.0001988,2]
[360052079,1746523840551,-450.0,0.0001988,2]
[360052080,1746523840560,-1809.3,0.0001988,2]
[360052082,1746523840569,-74.38294167,0.0001988,2]
[360052084,1746523840586,-308.78,0.0001988,2]
[360052086,1746523840598,-66.83705833,0.0001988,2]
[360052088,1746523840607,-450.0,0.0001988,2]
[360052089,1746523840618,-450.0,0.0001988,2]
[360052091,1746523840628,-571.78132308,0.0001988,2]
[360052093,1746523840637,-450.0,0.0001988,2]
[360052095,1746523840647,-1171.46,0.0001988,2]
[360052096,1746523840656,-450.0,0.0001988,2]
[360052098,1746523840665,-450.0,0.0001988,2]
[360052100,1746523840675,-450.0,0.0001988,2]
[360052102,1746523840684,-231.27256681,0.0001988,2]
[360052110,1746523840824,-450.0,0.00019879,2]
[360052111,1746523840834,-268.72743319,0.0001988,2]
[360052113,1746523840843,-450.0,0.0001988,2]
[360052115,1746523840854,-450.0,0.0001988,2]
[360052117,1746523840863,-450.0,0.0001988,2]
[360052119,1746523840873,-450.0,0.0001988,2]
[360052121,1746523840882,-450.0,0.0001988,2]
[360052123,1746523840892,-450.0,0.0001988,2]
[360052125,1746523840902,-450.0,0.0001988,2]
[360052127,1746523840911,-273.35300381,0.0001988,2]
[360052129,1746523840921,-450.0,0.0001988,2]
[360052131,1746523840931,-439.28044984,0.0001988,2]
[360052133,1746523840943,-10.71955016,0.0001988,2]
[360052135,1746523840952,-272.05940943,0.0001988,2]
[360052137,1746523840964,-47.5731377,0.0001988,2]
[360052139,1746523840974,-450.0,0.0001988,2]
[360052141,1746523840983,-96.30291763,0.0001988,2]
[360052241,1746523843313,-353.69708237,0.0001988,2]
[360052242,1746523843323,-450.0,0.0001988,2]
[360052243,1746523843332,-194.93993763,0.0001988,2]
[360052244,1746523843341,-307.07720001,0.0001988,2]
[360052257,1746523846244,-527.59337858,0.00019853,2]
[360052258,1746523846254,-450.0,0.00019853,2]
[360052259,1746523846263,-375.59906946,0.00019853,2]
[360052260,1746523846998,-118.46093054,0.00019853,2]
[360052261,1746523847007,-493.68,0.00019853,2]
[360052262,1746523847017,-466.45391188,0.00019864,2]
[360052263,1746523847026,-142.92279999,0.0001988,2]
[360052264,1746523847036,-450.0,0.0001988,2]
[360052265,1746523847046,-504.558914,0.0001988,2]
[360052266,1746523847055,-450.0,0.0001988,2]
[360052267,1746523847065,-450.0,0.0001988,2]
[360052268,1746523847074,-549.50452412,0.0001988,2]
[360052269,1746523847084,-450.0,0.0001988,2]
[360052270,1746523847093,-450.0,0.0001988,2]
[360052271,1746523847103,-450.0,0.0001988,2]
[360052272,1746523847113,-674.61,0.0001988,2]
[360052273,1746523847122,-450.0,0.0001988,2]
[360052274,1746523847131,-450.0,0.0001988,2]
[360052275,1746523847142,-450.0,0.0001988,2]
[360052276,1746523847151,-450.0,0.0001988,2]
[360052277,1746523847160,-450.0,0.0001988,2]
[360052278,1746523847169,-293.64572823,0.0001988,2]
[360052279,1746523847178,-450.0,0.0001988,2]
[360052280,1746523847188,-450.0,0.0001988,2]
[360052281,1746523847197,-450.0,0.0001988,2]
[360052282,1746523847206,-571.69461174,0.0001988,2]
[360052283,1746523847215,-450.0,0.0001988,2]
[360052284,1746523847224,-450.0,0.0001988,2]
[360052285,1746523847234,-450.0,0.0001988,2]
[360052286,1746523847243,-450.0,0.0001988,2]
[360052287,1746523847252,-548.38119583,0.0001988,2]
[360052288,1746523847261,-450.0,0.0001988,2]
[360052289,1746523847271,-450.0,0.0001988,2]
[360052290,1746523847280,-461.23858167,0.0001988,2]
[360052291,1746523847289,-450.0,0.0001988,2]
[360052292,1746523847298,-450.0,0.0001988,2]
[360052293,1746523847307,-933.07,0.0001988,2]
[360052294,1746523847317,-3929.15,0.0001988,2]
[360052295,1746523847326,-450.0,0.0001988,2]
[360052296,1746523847335,-450.0,0.0001988,2]
[360052297,1746523847344,-604.17,0.0001988,2]
[360052298,1746523847353,-450.0,0.0001988,2]
[360052299,1746523847362,-535.70607355,0.0001988,2]
[360052300,1746523847371,-450.0,0.0001988,2]
[360052301,1746523847380,-255.37499985,0.0001988,2]
[360052302,1746523847390,-450.0,0.0001988,2]
[360052303,1746523847399,-340.29081811,0.0001988,2]
[360052304,1746523847407,-450.0,0.0001988,2]
[360052305,1746523847416,-450.0,0.0001988,2]
[360052306,1746523847425,-151.56077242,0.0001988,2]
[360052307,1746523847434,-535.8237422,0.0001988,2]
[360052308,1746523847444,-500.0,0.0001988,2]
[360052309,1746523847453,-163.0819149,0.0001988,2]
[360052310,1746523847462,-369.08989358,0.0001988,2]
[360052311,1746523847471,-500.0,0.0001988,2]
[360052312,1746523847481,-182.66235686,0.0001988,2]
[360052313,1746523847490,-500.0,0.0001988,2]
[360052314,1746523847500,-276.47698521,0.0001988,2]